bitfinex-derivatives/quotes_SOLF0:USTF0_20250924
["timestamp","ask_amount","ask_price","bid_price","bid_amount"]
[1758729975269,194.65670155,213.68,213.55,7.28]
[1758729975270,7.68,213.64,213.55,7.28]
[1758729975469,4.39531983,213.63,213.56,65.5225]
[1758729975669,3.22478259,213.62,213.56,65.5225]
[1758729975870,125.86,213.64,213.56,65.5225]
[1758729976066,4.395398,213.63,213.56,65.5225]
[1758729976373,3.2248708,213.62,213.61,4.2111]
[1758729976572,125.86,213.64,213.57,65.5193]
[1758729976768,125.86,213.64,213.6,7.28]
[1758729976769,7.68,213.64,213.6,7.28]
[1758729976964,125.86,213.64,213.62,4.2108]
[1758729977166,118.18,213.64,213.62,4.2108]
[1758729977365,125.86,213.64,213.62,4.2108]
[1758729977873,118.18,213.64,213.56,7.28]
[1758729978079,4.39780225,213.63,213.56,7.28]
[1758729978370,3.22734172,213.62,213.56,7.28]
[1758729978570,128.02033859,213.64,213.57,4.2119]
[1758729978770,3.2286212,213.63,213.54,2.16033859]
[1758729978970,3.2286212,213.62,213.54,2.16033859]
[1758729979170,3.23113605,213.61,213.54,2.16033859]
[1758729979367,3.23089754,213.6,213.54,2.16033859]
[1758729979571,128.02033859,213.64,213.54,2.16033859]
[1758729979770,4.40109369,213.63,213.54,2.16033859]
[1758729979971,3.23059535,213.62,213.54,2.16033859]
[1758729980274,3.23059535,213.61,213.54,2.16033859]
[1758729980474,3.23059535,213.6,213.54,2.16033859]
[1758729980775,128.02033859,213.64,213.53,65.5307]
[1758729980975,4.40399972,213.63,213.54,2.16033859]
[1758729981180,4.40399972,213.62,213.57,4.2118]
[1758729981474,7.68,213.6,213.52,7.28]
[1758729981675,3.23350138,213.59,213.56,4.212]
[1758729981974,3.23350138,213.59,213.53,65.5304]
[1758729982174,3.23350138,213.59,213.56,2.16033859]
[1758729982374,118.14,213.61,213.59,4.2115]
[1758729982573,3.23836286,213.6,213.59,4.2115]
[1758729983272,4.40887983,213.6,213.59,4.2115]
[1758729984077,4.40889006,213.6,213.59,4.2115]
[1758729984277,3.23836286,213.6,213.59,4.2115]
[1758729984468,6.286e-05,213.6,213.59,11.9515]
[1758729984673,5.17050155,213.69,213.63,4.2107]
[1758729984874,7.58,213.67,213.63,4.2107]
[1758729985076,1.17046365,213.66,213.59,7.74]
[1758729985276,8.75046365,213.65,213.61,4.211]
[1758729985575,1.17046365,213.64,213.59,7.74]
[1758729985775,1.17046365,213.63,213.57,65.5178]
[1758729985977,1.17043466,213.62,213.59,7.74]
[1758729986184,1.17045186,213.61,213.55,65.5246]
[1758729986487,7.58,213.63,213.55,73.2646]
[1758729986778,1.170452,213.62,213.55,73.2646]
[1758729986979,7.58,213.63,213.61,4.211]
[1758729987170,72.24,213.64,213.58,7.74]
[1758729987368,1.17042681,213.63,213.59,7.74]
[1758729987570,72.24,213.64,213.59,7.74]
[1758729987776,1.17042667,213.63,213.59,7.74]
[1758729987980,7.58,213.69,213.59,73.2525]
[1758729988277,119.29038519,213.68,213.6,65.5092]
[1758729988479,1.17038519,213.67,213.6,65.5092]
[1758729988668,1.17038519,213.66,213.6,65.5092]
[1758729988872,1.17038519,213.65,213.59,7.74]
[1758729989072,118.12,213.68,213.57,65.5195]
[1758729989073,1.17038519,213.64,213.57,65.5195]
[1758729989283,7.58,213.66,213.63,4.2106]
[1758729989580,1.17034586,213.65,213.63,4.2106]
[1758729989778,1.17034586,213.64,213.63,4.2106]
[1758729990883,7.58,213.71,213.63,7.74]
[1758729991075,78.3,213.7,213.63,7.74]
[1758729992086,78.3,213.7,213.56,0.73375744]
[1758729992087,7.58,213.67,213.56,8.47375744]
[1758729992472,7.58,213.67,213.6,4.2113]
[1758729992671,7.58561437,213.68,213.53,65.5315]
[1758729992672,3.37571437,213.68,213.53,65.5315]
[1758729992974,7.58,213.64,213.52,7.74]
[1758729993173,74.56,213.63,213.52,7.74]
[1758729993378,10.95571437,213.62,213.55,4.2123]
[1758729993575,10.95571437,213.62,213.52,7.74]
[1758729993777,7.58,213.58,213.47,73.2872]
[1758729993981,7.58,213.58,213.47,7.74]
[1758729994380,7.58,213.56,213.49,4.2135]
[1758729994580,36.5,213.55,213.47,7.74]
[1758729995085,67.42,213.55,213.47,73.2898]
[1758729995279,102.44,213.58,213.5,73.2808]
[1758729995681,10.95571437,213.61,213.5,73.2808]
[1758729995984,46.1,213.6,213.5,73.2808]
[1758729996186,46.1,213.6,213.54,4.2124]
[1758729996582,46.1,213.6,213.51,65.5375]
[1758729996987,46.1,213.6,213.53,4.2126]
[1758729997385,7.58,213.59,213.52,4.2128]
[1758729998188,7.58,213.59,213.47,76.66461437]
[1758729999290,7.58,213.59,213.52,4.2127]
[1758729999490,7.58,213.59,213.48,65.5446]
[1758730000091,7.58,213.57,213.42,7.74]
[1758730000282,79.05571437,213.58,213.43,65.5625]
[1758730000588,7.58,213.57,213.43,65.5625]
[1758730000783,7.58,213.54,213.42,7.74]
[1758730001487,7.58,213.54,213.43,65.5623]
[1758730002087,7.58,213.54,213.42,7.74]
[1758730002287,7.58,213.54,213.46,4.214]
[1758730002883,1.17100851,213.53,213.46,4.214]
[1758730003083,7.58,213.54,213.46,4.214]
[1758730003284,1.17100851,213.53,213.46,4.214]
[1758730003487,7.58,213.54,213.47,4.2137]
[1758730003688,1.17100881,213.53,213.47,4.2137]
[1758730003889,7.58,213.54,213.47,4.2137]
[1758730004091,1.17100881,213.53,213.47,4.2137]
[1758730004290,7.58,213.54,213.47,4.2137]
[1758730004490,1.17100881,213.53,213.49,4.2135]
[1758730004690,7.58,213.52,213.49,4.2135]
[1758730005587,7.58,213.55,213.49,4.2135]
[1758730005792,119.2510001,213.54,213.45,7.74]
[1758730005990,1.17099983,213.53,213.45,7.74]
[1758730006191,118.08,213.54,213.45,7.74]
[1758730007091,7.58,213.53,213.49,4.2135]
[1758730007293,7.58,213.53,213.45,7.74]
[1758730007497,1.17105478,213.52,213.41,73.3082]
[1758730007798,10.95571437,213.53,213.41,73.3082]
[1758730007989,1.17109235,213.52,213.45,4.2141]
[1758730008186,7.58,213.52,213.45,4.2141]
[1758730009396,118.08,213.51,213.45,7.74]
[1758730010088,7.58,213.52,213.45,7.74]
[1758730010296,118.08,213.51,213.45,7.74]
[1758730011294,7.58,213.5,213.47,4.2137]
[1758730012894,7.58,213.5,213.44,4.2143]
[1758730016796,118.08,213.51,213.45,4.2142]
[1758730016996,126.02,213.51,213.45,4.2142]
[1758730017295,7.94,213.49,213.45,4.2142]
[1758730017494,7.94,213.57,213.44,65.5588]
[1758730017692,7.94,213.57,213.43,65.5623]
[1758730017693,113.69109235,213.56,213.45,72.7461]
[1758730017889,7.94,213.57,213.45,72.7461]
[1758730017890,7.94,213.57,213.46,65.5511]
[1758730018096,7.94,213.57,213.48,7.19]
[1758730018290,118.06,213.56,213.48,7.19]
[1758730018596,118.06,213.55,213.54,4.2125]
[1758730018797,118.06,213.55,213.48,7.19]
[1758730018990,118.06,213.55,213.52,4.2128]
[1758730019697,7.94,213.58,213.51,65.5379]
[1758730019994,118.06,213.57,213.51,65.5379]
[1758730020191,7.89,213.62,213.51,65.5379]
[1758730020391,1.17079653,213.61,213.53,72.9405]
[1758730020593,7.89,213.62,213.53,72.9405]
[1758730020794,71.1,213.61,213.58,4.2116]
[1758730021395,78.99,213.61,213.58,4.2116]
[1758730021595,7.89,213.61,213.56,7.41]
[1758730021893,7.89,213.66,213.56,72.9323]
[1758730022197,118.04,213.62,213.56,72.9323]
[1758730022700,7.89,213.66,213.58,65.5147]
[1758730022892,118.02,213.68,213.64,4.2104]
[1758730023200,118.02,213.68,213.64,7.41]
[1758730023497,7.89,213.7,213.64,7.41]
[1758730023696,5.17050155,213.74,213.65,7.41]
[1758730023697,7.89,213.74,213.65,7.41]
[1758730024000,92.97013493,213.73,213.65,7.41]
[1758730024195,1.17013493,213.72,213.65,7.41]
[1758730024402,118.02,213.72,213.66,65.4914]
[1758730024898,118.02,213.72,213.66,72.9014]
[1758730025088,118.02,213.72,213.69,4.2096]
[1758730025495,118.02,213.72,213.66,4.21]
[1758730025694,125.91,213.72,213.66,4.21]
[1758730028199,125.91,213.72,213.64,7.41]
[1758730028804,125.91,213.72,213.65,4.2103]
[1758730029697,125.91,213.72,213.62,4.2108]
[1758730029897,125.91,213.72,213.6,7.41]
[1758730030503,125.91,213.72,213.64,4.2105]
[1758730031901,125.91,213.72,213.6,7.41]
[1758730032207,1.17021662,213.71,213.6,7.41]
[1758730032507,7.89,213.7,213.62,4.2108]
[1758730034205,7.89,213.7,213.64,4.2105]
[1758730034510,7.89,213.7,213.62,72.9135]
[1758730034808,69.24,213.69,213.66,4.2101]
[1758730035196,69.24,213.69,213.66,11.6201]
[1758730035400,117.9,213.7,213.66,4.2101]
[1758730035604,117.9,213.7,213.62,7.41]
[1758730036209,117.9,213.7,213.62,11.6209]
[1758730036508,7.89,213.69,213.62,11.6209]
[1758730036710,117.9,213.68,213.62,7.41]
[1758730037109,117.9,213.68,213.64,4.2104]
[1758730037303,125.79,213.68,213.64,4.2104]
[1758730037503,7.89,213.67,213.64,4.2104]
[1758730037898,125.79,213.68,213.62,11.6209]
[1758730038102,125.79,213.68,213.57,8.15065426]
[1758730038603,4.2101,213.67,213.6,4.2112]
[1758730038911,7.89,213.66,213.6,4.2112]
[1758730040012,12.1003,213.66,213.57,8.15065426]
[1758730040205,12.1003,213.66,213.57,7.41]
[1758730041208,12.1003,213.66,213.57,11.6218]
[1758730041414,7.89,213.64,213.52,7.41]
[1758730041806,11.26571437,213.64,213.54,4.2123]
[1758730042103,7.89,213.63,213.52,7.41]
[1758730042308,7.89,213.61,213.52,11.6229]
[1758730042708,117.88,213.6,213.52,11.6229]
[1758730043706,7.89,213.59,213.52,11.6229]
[1758730043908,7.89,213.59,213.53,4.2126]
[1758730044315,117.86,213.58,213.52,7.41]
[1758730044715,7.35,213.57,213.52,7.41]
[1758730045615,7.35,213.57,213.51,7.61]
[1758730046210,7.35,213.57,213.53,4.2127]
[1758730046917,7.35,213.57,213.51,11.8231]
[1758730047118,7.35,213.57,213.51,7.61]
[1758730047612,7.35,213.57,213.53,4.2125]
[1758730049015,7.35,213.57,213.51,4.2131]
[1758730049218,2.16114991,213.55,213.46,7.61]
[1758730049622,2.16114991,213.55,213.49,4.2133]
[1758730049825,2.16114991,213.52,213.4,7.61]
[1758730050118,2.16114991,213.5,213.43,4.2146]
[1758730050325,70.16,213.49,213.43,4.2146]
[1758730050926,7.35,213.48,213.4,11.8251]
[1758730051322,2.16114991,213.47,213.4,11.8251]
[1758730051929,7.35,213.46,213.4,4.2151]
[1758730052128,7.35,213.46,213.39,0.73220966]
[1758730052728,7.35,213.46,213.38,4.2156]
[1758730052926,2.16114991,213.44,213.38,4.2156]
[1758730053527,7.35,213.43,213.36,4.2161]
[1758730053736,117.86,213.42,213.32,7.61]
[1758730054027,7.35,213.4,213.34,4.2165]
[1758730054230,125.21,213.4,213.34,4.2165]
[1758730054733,7.35,213.4,213.36,4.216]
[1758730055722,34.66,213.41,213.33,9.77114991]
[1758730056231,34.66,213.41,213.31,65.5983]
[1758730056232,7.35,213.4,213.31,67.75944991]
[1758730056732,7.35,213.4,213.32,4.2167]
[1758730056931,7.35,213.4,213.31,2.16114991]
[1758730057328,7.35,213.4,213.34,65.5901]
[1758730057534,34.66,213.41,213.34,65.5901]
[1758730058231,34.66,213.41,213.37,4.2157]
[1758730058436,42.01,213.41,213.37,4.2157]
[1758730059132,7.35,213.41,213.39,4.2155]
[1758730059427,7.35,213.43,213.39,4.2155]
[1758730061629,7.35,213.43,213.39,11.8255]
[1758730061839,7.35,213.44,213.39,4.2155]
[1758730062040,83.44114991,213.45,213.39,4.2155]
[1758730062334,7.35,213.44,213.39,4.2155]
[1758730062526,90.79114991,213.45,213.37,4.2159]
[1758730063633,7.35,213.44,213.35,13.98744991]
[1758730064129,120.02114991,213.44,213.35,11.8263]
[1758730064431,7.35,213.43,213.35,7.61]
[1758730065035,7.35,213.43,213.35,11.8261]
[1758730065434,7.35,213.4,213.31,2.16114991]
[1758730065634,7.35,213.4,213.34,4.2165]
[1758730066430,71.38,213.42,213.35,7.61]
[1758730066935,7.35,213.44,213.35,7.61]
[1758730067437,7.35,213.44,213.35,9.77114991]
[1758730067636,7.35,213.44,213.39,11.8254]
[1758730068634,105.82114991,213.46,213.35,67.74774991]
[1758730068635,7.35,213.5,213.41,7.61]
[1758730068837,7.35,213.5,213.41,9.77114991]
[1758730069532,7.35,213.5,213.42,7.61]
[1758730069932,7.35,213.5,213.42,65.5639]
[1758730070139,7.35,213.54,213.45,7.61]
[1758730070535,2.16114991,213.56,213.43,65.5617]
[1758730070536,2.16114991,213.56,213.48,7.61]
[1758730070730,55.22114991,213.59,213.48,7.61]
[1758730071439,120.00114991,213.59,213.52,4.2127]
[1758730071737,7.35,213.6,213.51,73.1473]
[1758730072540,7.35,213.6,213.51,11.8231]
[1758730072739,7.35,213.6,213.51,7.61]
[1758730073433,458.74,213.62,213.47,9.77114991]
[1758730073434,7.35,213.57,213.47,9.77114991]
[1758730073735,2.16114991,213.55,213.47,9.77114991]
[1758730074139,2.16114991,213.55,213.47,7.61]
[1758730074439,7.31,213.54,213.44,2.16114991]
[1758730074636,7.31,213.54,213.45,7.2]
[1758730076238,7.31,213.54,213.46,4.2141]
[1758730076439,7.31,213.54,213.45,7.2]
[1758730077337,2.16114991,213.58,213.48,7.2]
[1758730078150,9.47114991,213.58,213.48,7.2]
[1758730079541,7.31,213.58,213.51,4.2129]
[1758730080245,7.31,213.58,213.48,11.4135]
[1758730080441,7.31,213.58,213.48,7.2]
[1758730080640,340.9,213.62,213.55,4.2121]
[1758730080848,340.9,213.62,213.55,2.16114991]
[1758730081341,340.9,213.62,213.58,4.2117]
[1758730081539,348.16,213.62,213.58,4.2117]
[1758730082245,348.16,213.62,213.54,2.16114991]
[1758730082842,348.16,213.62,213.57,11.8417]
[1758730083542,117.76,213.63,213.59,4.2115]
[1758730083747,117.74,213.65,213.57,2.16114991]
[1758730084345,2.16114991,213.71,213.6,7.63]
[1758730084651,1.17026575,213.7,213.62,2.16114991]
[1758730084850,117.72,213.7,213.62,9.79114991]
[1758730085346,7.26,213.72,213.63,65.5009]
[1758730085545,117.72,213.71,213.62,7.63]
[1758730085752,119.88114991,213.71,213.63,4.2107]
[1758730085946,119.88114991,213.71,213.62,7.63]
[1758730086146,7.26,213.7,213.62,7.63]
[1758730086448,2.16114991,213.69,213.6,2.16114991]
[1758730087452,2.16114991,213.69,213.6,6.37234991]
[1758730087854,7.26,213.68,213.6,6.37234991]
[1758730088856,124.94,213.68,213.6,6.37234991]
[1758730089257,124.94,213.68,213.61,4.2109]
[1758730089860,7.26,213.68,213.61,4.2109]
[1758730090056,180.40587514,213.82,213.66,2.16114991]
[1758730090254,7.26,213.79,213.7,2.16114991]
[1758730090963,7.26,213.77,213.7,2.16114991]
[1758730091162,7.26,213.77,213.68,2.16114991]
[1758730091666,7.26,213.75,213.67,2.16114991]
[1758730091959,124.92,213.75,213.67,2.16114991]
[1758730092258,124.92,213.75,213.64,65.4974]
[1758730092453,124.92,213.75,213.68,4.2096]
[1758730092964,7.26,213.73,213.65,2.16114991]
[1758730093556,9.42114991,213.73,213.65,2.16114991]
[1758730093751,9.42114991,213.73,213.66,4.2101]
[1758730093953,9.42114991,213.73,213.63,9.79114991]
[1758730094261,9.42114991,213.73,213.66,4.21]
[1758730096963,7.26,213.73,213.66,4.21]
[1758730097162,9.42114991,213.73,213.66,4.21]
[1758730097665,117.6,213.72,213.66,4.21]
[1758730097854,7.26,213.7,213.66,4.21]
[1758730098460,9.42114991,213.69,213.59,2.16114991]
[1758730098860,2.16114991,213.67,213.59,2.16114991]
[1758730099066,7.26,213.66,213.59,2.16114991]
[1758730099263,7.26,213.67,213.59,2.16114991]
[1758730100266,2.16114991,213.69,213.63,4.2107]
[1758730100468,7.26,213.68,213.63,4.2107]
[1758730100764,2.16114991,213.69,213.63,4.2107]
[1758730101067,7.26,213.68,213.63,4.2107]
[1758730101262,2.16114991,213.69,213.63,4.2107]
[1758730101467,7.26,213.68,213.59,2.16114991]
[1758730103169,7.26,213.66,213.57,9.79114991]
[1758730103372,7.26,213.66,213.59,9.79114991]
[1758730103571,2.16114991,213.67,213.62,4.2108]
[1758730103762,7.26,213.66,213.62,4.2108]
[1758730103969,2.16114991,213.67,213.62,4.2108]
[1758730104166,7.26,213.66,213.62,4.2108]
[1758730104372,2.16114991,213.67,213.62,4.2108]
[1758730104771,7.26,213.66,213.62,4.2108]
[1758730105077,2.16114991,213.67,213.62,4.2108]
[1758730105477,7.26,213.66,213.62,4.2108]
[1758730105970,7.26,213.66,213.6,4.2113]
[1758730107081,7.26,213.66,213.61,4.211]
[1758730107270,7.26,213.66,213.59,7.49]
[1758730107674,7.26,213.66,213.61,4.2111]
[1758730107874,124.82,213.68,213.59,7.49]
[1758730108377,117.56,213.68,213.63,4.2106]
[1758730108588,7.26,213.67,213.63,4.2106]
[1758730109083,117.56,213.68,213.63,4.2106]
[1758730110178,7.26,213.66,213.61,4.2111]
[1758730110379,7.26,213.67,213.55,7.49]
[1758730110578,7.26,213.65,213.55,7.49]
[1758730110786,1.17033659,213.64,213.58,4.2116]
[1758730111282,1.17033659,213.64,213.59,4.2114]
[1758730111582,7.26,213.63,213.59,4.2114]
[1758730111777,7.26,213.64,213.59,4.2114]
[1758730111984,3.37492335,213.65,213.59,4.2114]
[1758730112183,7.26,213.63,213.59,4.2114]
[1758730112388,7.26,213.61,213.59,4.2114]
[1758730112784,4.2112,213.61,213.53,0.7246454]
[1758730112984,7.26,213.6,213.53,0.7246454]
[1758730113884,1.17058815,213.59,213.55,4.2121]
[1758730114191,7.26,213.61,213.51,7.49]
[1758730114382,7.26,213.57,213.51,4.213]
[1758730114581,4.2118,213.58,213.51,4.213]
[1758730114582,7.26,213.55,213.51,4.213]
[1758730114783,1.1708492,213.54,213.51,4.213]
[1758730114995,7.26,213.57,213.51,4.213]
[1758730115181,7.26,213.55,213.46,7.49]
[1758730115380,1.1709184,213.54,213.46,7.49]
[1758730116088,1.1709184,213.54,213.47,4.2138]
[1758730116295,8.4309184,213.53,213.47,4.2138]
[1758730116482,1.1709184,213.52,213.47,4.2138]
[1758730116684,8.4309184,213.51,213.47,4.2138]
[1758730116889,7.26,213.51,213.47,4.2138]
[1758730117289,7.26,213.51,213.44,65.5579]
[1758730117492,3.37492335,213.56,213.48,65.547]
[1758730117493,58.56,213.56,213.48,65.547]
[1758730117696,1.17097111,213.55,213.49,7.49]
[1758730117888,58.56,213.56,213.49,7.49]
[1758730118089,1.17093256,213.55,213.49,7.49]
[1758730118290,58.56,213.56,213.49,7.49]
[1758730118489,8.43093242,213.55,213.46,73.0428]
[1758730118690,1.17096873,213.54,213.46,73.0428]
[1758730118890,7.26,213.55,213.46,73.0428]
[1758730119091,7.26,213.53,213.42,73.0535]
[1758730119488,7.26,213.53,213.44,4.2145]
[1758730119693,1.1711516,213.52,213.44,4.2145]
[1758730120084,10.63492335,213.53,213.42,7.49]
[1758730120791,10.63492335,213.53,213.38,65.5772]
[1758730120983,124.0833,213.56,213.38,7.49]
[1758730120984,7.26,213.49,213.38,7.49]
[1758730121187,73.9137,213.48,213.38,7.49]
[1758730121695,73.9137,213.48,213.41,4.2151]
[1758730121696,69.7,213.48,213.41,4.2151]
[1758730122694,7.26,213.47,213.41,4.2151]
[1758730123193,76.96,213.48,213.39,65.5745]
[1758730123699,1.17139831,213.47,213.39,65.5745]
[1758730123896,76.96,213.48,213.39,65.5745]
[1758730124085,76.96,213.48,213.4,4.2151]
[1758730124295,76.96,213.48,213.38,73.0672]
[1758730124889,76.96,213.48,213.42,4.2147]
[1758730125091,7.26,213.48,213.42,4.2147]
[1758730125301,7.58842335,213.5,213.38,7.49]
[1758730125302,7.26,213.46,213.38,7.49]
[1758730125591,7.26,213.46,213.39,4.2154]
[1758730129096,7.26,213.46,213.34,7.49]
[1758730129796,7.26,213.44,213.37,4.2159]
[1758730130397,111.04,213.43,213.37,4.2159]
[1758730130599,7.26,213.42,213.34,7.49]
[1758730131104,11.4749,213.42,213.35,4.2161]
[1758730131506,7.26,213.42,213.34,7.49]
[1758730131804,7.26,213.42,213.36,4.2159]
[1758730133899,0.81591503,213.41,213.36,4.2159]
[1758730134099,7.94,213.4,213.36,4.2159]
[1758730134300,7.94,213.4,213.34,11.7064]
[1758730135304,7.94,213.4,213.33,4.2165]
[1758730135500,7.94,213.4,213.29,7.27]
[1758730135800,0.81591503,213.41,213.36,4.2161]
[1758730136006,7.94,213.4,213.31,7.27]
[1758730136402,8.75591503,213.41,213.35,4.2161]
[1758730138909,0.81591503,213.41,213.36,4.2159]
[1758730139811,7.6,213.4,213.31,7.27]
[1758730140209,118.33591503,213.41,213.34,7.38]
[1758730140506,118.33591503,213.41,213.38,4.2155]
[1758730140705,125.93591503,213.41,213.38,4.2155]
[1758730140909,125.93591503,213.41,213.34,7.38]
[1758730140910,118.33591503,213.41,213.35,4.2161]
[1758730141101,125.93591503,213.41,213.34,7.38]
[1758730141407,0.81591503,213.41,213.39,4.2153]
[1758730141609,0.81591503,213.41,213.39,11.5953]
[1758730141908,0.81591503,213.41,213.35,65.5872]
[1758730141909,7.6,213.45,213.37,65.5805]
[1758730142107,7.6,213.45,213.38,7.38]
[1758730142310,0.81578115,213.46,213.39,65.574]
[1758730142505,0.81578115,213.46,213.4,7.38]
[1758730143113,0.81578115,213.46,213.4,11.5951]
[1758730143410,0.81578115,213.46,213.4,7.38]
[1758730144302,0.81578115,213.46,213.42,7.38]
[1758730144500,0.81578115,213.46,213.4,7.38]
[1758730144902,0.81578115,213.46,213.44,4.2144]
[1758730145809,0.81578115,213.46,213.43,7.38]
[1758730146406,0.81578115,213.46,213.44,7.38]
[1758730147108,7.6,213.45,213.36,7.38]
[1758730147311,7.6,213.45,213.37,4.2158]
[1758730147312,11.8144,213.45,213.37,4.2158]
[1758730147513,10.97492335,213.45,213.37,4.2158]
[1758730147826,10.97492335,213.45,213.36,7.38]
[1758730148203,7.6,213.43,213.36,7.38]
[1758730148402,117.48,213.42,213.36,7.38]
[1758730149015,117.48,213.42,213.36,11.596]
[1758730149208,7.6,213.41,213.31,7.38]
[1758730150413,11.8155,213.39,213.33,4.2165]
[1758730151009,125.06982335,213.42,213.35,4.2162]
[1758730151215,7.6,213.4,213.31,7.38]
[1758730152311,11.8155,213.4,213.33,4.2166]
[1758730152810,7.6,213.45,213.33,65.5922]
[1758730153009,48.0317196,213.44,213.34,7.38]
[1758730153215,1.1717196,213.43,213.34,7.38]
[1758730153410,1.1717196,213.42,213.34,7.38]
[1758730153616,46.86,213.44,213.37,4.2157]
[1758730153818,1.17167358,213.43,213.37,4.2157]
[1758730154013,7.6,213.41,213.37,4.2157]
[1758730154209,10.97492335,213.42,213.35,4.2162]
[1758730154410,1.17168199,213.41,213.34,7.38]
[1758730154612,7.6,213.45,213.4,7.38]
[1758730154805,1.17161915,213.44,213.4,7.38]
[1758730155007,125.06,213.45,213.4,7.38]
[1758730155213,1.17160102,213.44,213.42,4.2148]
[1758730155516,125.06,213.45,213.42,4.2148]
[1758730155709,125.06,213.45,213.4,7.38]
[1758730156207,1.17149675,213.44,213.4,7.38]
[1758730156404,0.81578115,213.46,213.39,65.5741]
[1758730156617,5.17050155,213.54,213.44,7.38]
[1758730156816,98.1,213.53,213.44,7.38]
[1758730157113,0.8155135,213.52,213.44,7.38]
[1758730158314,117.44,213.51,213.44,7.38]
[1758730158518,7.6,213.5,213.4,7.38]
[1758730159720,4.2135,213.49,213.4,7.38]
[1758730161015,7.6,213.5,213.43,4.2145]
[1758730161716,7.6,213.5,213.38,65.5769]
[1758730161717,117.42,213.5,213.42,7.38]
[1758730162421,117.42,213.5,213.44,4.2144]
[1758730162622,117.42,213.5,213.42,7.38]
[1758730162826,7.6,213.51,213.42,7.38]
[1758730163122,75.54,213.5,213.46,7.38]
[1758730163421,75.54,213.5,213.36,65.5822]
[1758730163620,7.6,213.49,213.39,7.38]
[1758730164120,7.6,213.49,213.44,11.8544]
[1758730164324,13.5740384,213.52,213.44,11.8544]
[1758730164325,7.29e-05,213.52,213.48,65.547]
[1758730164511,7.59,213.6,213.5,7.64]
[1758730164925,10.96492335,213.6,213.5,7.64]
[1758730165122,7.59,213.6,213.5,7.64]
[1758730165327,10.96492335,213.6,213.5,7.64]
[1758730166021,4.2117,213.59,213.5,7.64]
[1758730166214,4.2117,213.59,213.46,65.5523]
[1758730166215,76.47652335,213.6,213.46,4.2139]
[1758730166413,7.59,213.56,213.46,4.2139]
[1758730166618,2.16280056,213.53,213.46,4.2139]
[1758730167624,2.9782854,213.53,213.46,4.2139]
[1758730167825,2.9782854,213.53,213.45,7.64]
[1758730168220,9.75280056,213.51,213.42,4.2148]
[1758730168422,9.75280056,213.51,213.41,9.80280056]
[1758730168724,1.17125321,213.5,213.41,9.80280056]
[1758730169026,1.17125321,213.49,213.41,9.80280056]
[1758730169226,7.59,213.51,213.44,7.64]
[1758730169426,1.17125191,213.5,213.44,7.64]
[1758730169627,2.9782854,213.53,213.44,7.64]
[1758730169823,1.17125133,213.52,213.44,7.64]
[1758730170120,1.17125133,213.51,213.45,2.16280056]
[1758730170328,0.81548484,213.53,213.45,2.16280056]
[1758730170525,1.17119571,213.52,213.45,2.16280056]
[1758730170728,0.81548484,213.53,213.45,2.16280056]